fUSD/lending_fUSD_20260217
["ID","MTS","AMOUNT","RATE_DAILY","PERIOD"]
[405776227,1771297846273,-7646.21367114,0.00016966,2]
[405776228,1771297846283,-9035.0,0.00016996,2]
[405776229,1771297846292,-915.21,0.00016998,2]
[405776230,1771297846301,-500.0,0.00016998,2]
[405776231,1771297846311,-500.0,0.00016999,2]
[405776232,1771297846321,-500.0,0.00016999,2]
[405776233,1771297846331,-500.0,0.00016999,2]
[405776234,1771297846341,-500.0,0.00016999,2]
[405776235,1771297846351,-500.0,0.00016999,2]
[405776236,1771297846364,-500.0,0.00016999,2]
[405776237,1771297846377,-388.47570654,0.00016999,2]
[405776238,1771297846387,-351.61555624,0.00016999,2]
[405776239,1771297846397,-500.0,0.00016999,2]
[405776240,1771297846411,-500.0,0.00016999,2]
[405776241,1771297846420,-508.20125622,0.00016999,2]
[405776242,1771297846431,-500.0,0.00016999,2]
[405776243,1771297846441,-505.24249427,0.00016999,2]
[405776244,1771297846451,-679.08,0.00016999,2]
[405776245,1771297846462,-679.08,0.00016999,2]
[405776246,1771297846471,-679.08,0.00016999,2]
[405776247,1771297846482,-679.08,0.00016999,2]
[405776248,1771297846491,-679.22619195,0.00016999,2]
[405776249,1771297846500,-1125.16,0.00016999,2]
[405776250,1771297846510,-1125.16,0.00016999,2]
[405776251,1771297846521,-1125.16,0.00016999,2]
[405776252,1771297846532,-1125.16,0.00016999,2]
[405776253,1771297846542,-1125.29508189,0.00016999,2]
[405776254,1771297846551,-150.0,0.00017218,2]
[405776255,1771297846562,-500.0,0.00017218,2]
[405776256,1771297846571,-500.0,0.00017218,2]
[405776257,1771297846582,-237.28842339,0.00017218,2]
[405776258,1771297846592,-500.0,0.00017218,2]
[405776259,1771297846601,-500.0,0.00017218,2]
[405776260,1771297846612,-150.0,0.00017218,2]
[405776261,1771297846622,-150.0,0.00017218,2]
[405776262,1771297846632,-150.0,0.00017218,2]
[405776263,1771297846641,-150.0,0.00017218,2]
[405776264,1771297846652,-500.0,0.00017218,2]
[405776265,1771297846661,-500.0,0.00017218,2]
[405776266,1771297846671,-150.0,0.00017218,2]
[405776267,1771297846680,-500.0,0.00017218,2]
[405776268,1771297846690,-150.0,0.00017273,2]
[405776269,1771297846700,-500.0,0.00017273,2]
[405776270,1771297846709,-500.0,0.00017273,2]
[405776271,1771297846719,-500.0,0.00017273,2]
[405776272,1771297846728,-500.0,0.00017273,2]
[405776273,1771297846737,-244.28993987,0.00017273,2]
[405776274,1771297846747,-150.0,0.00017273,2]
[405776275,1771297846756,-150.0,0.00017273,2]
[405776276,1771297846766,-150.0,0.00017273,2]
[405776277,1771297846775,-649.65624143,0.00017273,2]
[405776278,1771297846784,-500.0,0.00017273,2]
[405776279,1771297846794,-205.12968692,0.00017273,2]
[405776280,1771297846804,-500.0,0.00017273,2]
[405776281,1771297846814,-502.0,0.000173,2]
[405776282,1771297846823,-242.84628954,0.00017328,2]
[405776283,1771297846833,-500.0,0.00017328,2]
[405776284,1771297846843,-220.15883999,0.00017328,2]
[405776285,1771297846853,-500.0,0.00017328,2]
[405776286,1771297846863,-500.0,0.00017328,2]
[405776287,1771297846874,-150.0,0.00017328,2]
[405776288,1771297846884,-200.36674187,0.00017328,2]
[405776289,1771297846893,-200.18645604,0.00017328,2]
[405776290,1771297846903,-500.0,0.00017328,2]
[405776291,1771297846913,-152.12850518,0.00017328,2]
[405776292,1771297846922,-500.0,0.00017382,2]
[405776293,1771297846932,-500.0,0.00017382,2]
[405776294,1771297846941,-500.0,0.00017382,2]
[405776295,1771297846951,-200.89245722,0.00017382,2]
[405776296,1771297846961,-500.0,0.00017382,2]
[405776297,1771297846971,-500.0,0.00017437,2]
[405776298,1771297846981,-500.0,0.00017437,2]
[405776299,1771297846990,-500.0,0.00017437,2]
[405776300,1771297847002,-500.0,0.00017437,2]
[405776301,1771297847012,-155.0,0.00017449,2]
[405776302,1771297847022,-500.0,0.00017492,2]
[405776303,1771297847031,-500.0,0.00017492,2]
[405776304,1771297847041,-500.0,0.00017492,2]
[405776305,1771297847051,-500.0,0.00017492,2]
[405776306,1771297847062,-500.0,0.00017547,2]
[405776307,1771297847072,-500.0,0.00017547,2]
[405776308,1771297847083,-630.25617345,0.00017547,2]
[405776309,1771297847093,-382.17209928,0.00017547,2]
[405776310,1771297847103,-500.0,0.00017602,2]
[405776311,1771297847112,-500.0,0.00017602,2]
[405776312,1771297847122,-1049.3762714,0.00017639,2]
[405776313,1771297847132,-1126.62264673,0.00017639,2]
[405776314,1771297847142,-1142.24429677,0.00017639,2]
[405776315,1771297847152,-1046.81808898,0.00017639,2]
[405776316,1771297847163,-1099.76088691,0.00017639,2]
[405776317,1771297847172,-1124.19257785,0.00017639,2]
[405776318,1771297847181,-1131.14729565,0.00017639,2]
[405776319,1771297847191,-1018.97528934,0.00017639,2]
[405776320,1771297847202,-1112.64986243,0.0001764,2]
[405776321,1771297847211,-1090.81080323,0.0001764,2]
[405776322,1771297847221,-1000.03730101,0.0001764,2]
[405776323,1771297847231,-1099.4930901,0.0001764,2]
[405776324,1771297847241,-1143.84088094,0.0001764,2]
[405776325,1771297847251,-1015.35457711,0.0001764,2]
[405776326,1771297847260,-1059.34743302,0.0001764,2]
[405776327,1771297847270,-1086.5848785,0.0001764,2]
[405776328,1771297847280,-1097.64424218,0.0001764,2]
[405776329,1771297847291,-1003.41092545,0.0001764,2]
[405776330,1771297847301,-1014.40110774,0.0001764,2]
[405776331,1771297847417,-1057.90277135,0.0001764,2]
[405776332,1771297847427,-1142.08355039,0.0001764,2]
[405776333,1771297847438,-1022.09009414,0.0001764,2]
[405776334,1771297847447,-1008.25561704,0.0001764,2]
[405776335,1771297847457,-1225.31516377,0.0001764,2]
[405776336,1771297847466,-500.0,0.00017656,2]
[405776337,1771297847475,-500.0,0.00017656,2]
[405776338,1771297847484,-1600.0,0.00017692,2]
[405776339,1771297847493,-788.00311282,0.00017699,2]
[405776340,1771297847503,-500.0,0.00017711,2]
[405776341,1771297847512,-500.0,0.00017711,2]
[405776342,1771297847522,-160.57318335,0.0001773,2]
[405776343,1771297847531,-500.0,0.00017766,2]
[405776344,1771297847541,-500.0,0.00017766,2]
[405776345,1771297847551,-444.64,0.00017808,2]
[405776346,1771297847561,-500.0,0.00017808,2]
[405776347,1771297847570,-500.0,0.00017808,2]
[405776348,1771297847579,-500.0,0.00017808,2]
[405776349,1771297847589,-500.0,0.00017808,2]
[405776350,1771297847598,-500.0,0.00017808,2]
[405776351,1771297847607,-595.71508911,0.00017808,2]
[405776352,1771297847616,-500.0,0.00017808,2]
[405776353,1771297847625,-500.0,0.00017808,2]
[405776354,1771297847635,-500.0,0.00017808,2]
[405776355,1771297847644,-800.0,0.00017808,2]
[405776356,1771297847654,-250.0,0.00017808,20]
[405776357,1771297847664,-250.0,0.00017808,20]
[405776358,1771297847673,-250.0,0.00017808,20]
[405776359,1771297847683,-250.0,0.00017808,20]
[405776360,1771297847692,-250.0,0.00017808,20]
[405776361,1771297847702,-250.0,0.00017808,20]
[405776362,1771297847711,-250.0,0.00017808,20]
[405776363,1771297847721,-250.0,0.00017808,20]
[405776364,1771297847730,-250.0,0.00017808,20]
[405776365,1771297847739,-250.0,0.00017808,20]
[405776366,1771297847748,-250.0,0.00017808,20]
[405776367,1771297847758,-250.0,0.00017808,20]
[405776368,1771297847768,-250.0,0.00017808,20]
[405776369,1771297847777,-250.0,0.00017808,20]
[405776370,1771297847787,-250.0,0.00017808,20]
[405776371,1771297847796,-211.316222,0.00017808,20]
[405776372,1771297847807,-833.19092927,0.00017809,2]
[405776373,1771297847817,-163.51122534,0.00017821,2]
[405776374,1771297847827,-500.0,0.00017821,2]
[405776375,1771297847836,-224.65460803,0.00017876,2]
[405776376,1771297847845,-915.21,0.00017899,2]
[405776377,1771297847854,-500.0,0.00017899,2]
[405776378,1771297847863,-25000.0,0.000179,3]
[405776379,1771297847872,-173.57638878,0.000179,3]
[405776380,1771297847882,-389.91437262,0.000179,3]
[405776381,1771297847891,-1488.83065607,0.000179,2]
[405776382,1771297847901,-7646.21367114,0.000179,2]
[405776383,1771297847911,-500.0,0.00017918,2]
[405776384,1771297847920,-500.0,0.00017918,2]
[405776385,1771297847930,-584.0,0.00017918,2]
[405776386,1771297847940,-500.0,0.0001799,2]
[405776387,1771297847949,-763.92788936,0.0001799,2]
[405776388,1771297847959,-151.0,0.00017997,2]
[405776389,1771297847969,-300.0,0.00017999,2]
[405776390,1771297847978,-502.75243677,0.00017999,2]
[405776391,1771297847987,-915.21,0.00017999,2]
[405776392,1771297847997,-915.21,0.00017999,2]
[405776393,1771297848006,-915.21,0.00017999,2]
[405776394,1771297848015,-915.21,0.00017999,2]
[405776395,1771297848024,-915.2263384,0.00017999,2]
[405776396,1771297848034,-500.0,0.00017999,2]
[405776397,1771297848044,-538.27974596,0.00017999,2]
[405776398,1771297848053,-300.0,0.00017999,2]
[405776399,1771297848063,-666.0,0.00017999,2]
[405776400,1771297848072,-300.0,0.00017999,2]
[405776401,1771297848082,-666.0,0.00017999,2]
[405776402,1771297848091,-666.0,0.00017999,2]
[405776403,1771297848100,-23598.10797836,0.00017999,2]
[405776404,1771297848110,-8261794.20660951,0.00018,2]
[405776405,1771297848711,-8811.63573528,0.00018,2]
[405776406,1771297848723,-8947.21879473,0.00018,2]
[405776407,1771297848735,-8943.78386462,0.00018,2]
[405776408,1771297848746,-9077.54866152,0.00018,2]
[405776409,1771297850575,5046.0956242,9.594e-05,2]
[405776410,1771297892347,6121.659,9.402e-05,2]
[405776411,1771297892386,521.581,9.402e-05,2]
[405776412,1771297894026,2032.9993,9.495e-05,2]
[405776413,1771297900281,1323.7707,9.495e-05,2]
[405776414,1771297900304,10000.01,9.495e-05,2]
[405776415,1771297900327,10000.01,9.495e-05,2]
[405776416,1771297900349,5405.5215,9.495e-05,2]
[405776417,1771297906253,2500.0,9.495e-05,2]
[405776420,1771297957516,150.0,0.00012421,120]
[405776422,1771297991996,2094.4885,9.495e-05,2]
[405776423,1771297992024,10000.01,9.495e-05,2]
[405776424,1771297992048,10000.01,9.495e-05,2]
[405776425,1771297992071,10000.01,9.495e-05,2]
[405776426,1771297992095,755.9416,9.495e-05,2]
[405776427,1771298035179,4129.358,9.495e-05,2]
[405776428,1771298042313,5114.7104,9.495e-05,2]
[405776429,1771298042335,10000.01,9.495e-05,2]
[405776430,1771298042356,10000.01,9.495e-05,2]
[405776431,1771298042378,10000.01,9.495e-05,2]
[405776432,1771298042399,10000.01,9.495e-05,2]
[405776433,1771298042423,10000.01,9.495e-05,2]
[405776434,1771298042446,10000.01,9.495e-05,2]
[405776435,1771298042470,10000.01,9.495e-05,2]
[405776436,1771298042494,10000.01,9.495e-05,2]
[405776437,1771298042516,4336.3523,9.495e-05,2]
[405776438,1771298047344,2500.0,9.495e-05,2]
[405776441,1771298195984,306.24993584,9.492e-05,2]
[405776442,1771298196020,500.0,9.492e-05,2]
[405776443,1771298196057,319.94512873,9.492e-05,2]
[405776444,1771298196729,500.0,9.492e-05,2]
[405776445,1771298196770,500.0,9.492e-05,2]
[405776446,1771298196834,528.38821764,9.492e-05,2]
[405776447,1771298204738,500.0,9.492e-05,2]
[405776448,1771298204770,577.28785723,9.492e-05,2]
[405776449,1771298204799,500.0,9.492e-05,2]
[405776450,1771298204831,562.38554082,9.492e-05,2]
[405776451,1771298204867,500.0,9.492e-05,2]
[405776452,1771298204898,500.0,9.492e-05,2]
[405776453,1771298204932,500.0,9.492e-05,2]
[405776454,1771298204964,510.27609923,9.492e-05,2]
[405776455,1771298204994,500.0,9.492e-05,2]
[405776456,1771298205024,500.0,9.492e-05,2]
[405776457,1771298205058,750.8529676,9.492e-05,2]
[405776458,1771298205093,305.28712047,9.492e-05,2]
[405776459,1771298205124,550.77300573,9.492e-05,2]
[405776460,1771298205154,500.0,9.492e-05,2]
[405776461,1771298205183,88.56412671,9.492e-05,2]
[405776462,1771298205204,411.43587329,9.492e-05,2]
[405776463,1771298205236,500.0,9.492e-05,2]
[405776464,1771298205271,750.8529676,9.492e-05,2]
[405776465,1771298205302,500.0,9.492e-05,2]
[405776466,1771298205332,263.42538756,9.492e-05,2]
[405776467,1771298205367,577.28785722,9.492e-05,2]
[405776468,1771298205397,500.0,9.492e-05,2]
[405776469,1771298205431,500.0,9.492e-05,2]
[405776470,1771298205463,750.8529676,9.492e-05,2]
[405776471,1771298205497,500.0,9.492e-05,2]
[405776472,1771298205528,565.83656901,9.492e-05,2]
[405776473,1771298205562,750.8529676,9.492e-05,2]
[405776474,1771298205591,500.0,9.492e-05,2]
[405776475,1771298205628,750.8529676,9.492e-05,2]
[405776476,1771298205676,500.0,9.492e-05,2]
[405776477,1771298205711,500.0,9.492e-05,2]
[405776478,1771298205745,395.8150033,9.492e-05,2]
[405776479,1771298205780,750.8529676,9.492e-05,2]
[405776480,1771298205814,31.94447162,9.492e-05,2]
[405776481,1771298205836,468.05552838,9.492e-05,2]
[405776482,1771298205868,500.0,9.492e-05,2]
[405776483,1771298205900,750.8529676,9.492e-05,2]
[405776484,1771298205937,750.8529676,9.492e-05,2]
[405776485,1771298205968,500.0,9.492e-05,2]
[405776486,1771298206003,750.8529676,9.492e-05,2]
[405776487,1771298206041,750.8529676,9.492e-05,2]
[405776488,1771298206080,750.8529676,9.492e-05,2]
[405776489,1771298206115,750.8529676,9.492e-05,2]
[405776490,1771298206151,750.8529676,9.492e-05,2]
[405776491,1771298206187,750.8529676,9.492e-05,2]
[405776492,1771298206224,750.8529676,9.492e-05,2]
[405776493,1771298206277,750.8529676,9.492e-05,2]
[405776494,1771298206312,750.8529676,9.492e-05,2]
[405776495,1771298206350,272.57182802,9.492e-05,2]
[405776496,1771298206376,478.28113958,9.492e-05,2]
[405776497,1771298206423,750.8529676,9.492e-05,2]
[405776498,1771298206474,750.8529676,9.492e-05,2]
[405776499,1771298206570,750.8529676,9.492e-05,2]
[405776500,1771298206608,750.8529676,9.492e-05,2]
[405776501,1771298206643,750.8529676,9.492e-05,2]
[405776502,1771298206679,750.8529676,9.492e-05,2]
[405776503,1771298206721,750.8529676,9.492e-05,2]
[405776504,1771298206772,750.8529676,9.492e-05,2]
[405776505,1771298206813,750.8529676,9.492e-05,2]
[405776506,1771298206848,750.8529676,9.492e-05,2]
[405776507,1771298206888,750.8529676,9.492e-05,2]
[405776508,1771298206932,750.8529676,9.492e-05,2]
[405776509,1771298206967,511.49324922,9.492e-05,2]
[405776510,1771298206993,239.35971838,9.492e-05,2]
[405776511,1771298207427,750.8529676,9.492e-05,2]
[405776512,1771298207478,750.8529676,9.492e-05,2]
[405776513,1771298207512,750.8529676,9.492e-05,2]
[405776514,1771298207560,750.8529676,9.492e-05,2]
[405776515,1771298207596,750.8529676,9.492e-05,2]
[405776516,1771298207636,750.8529676,9.492e-05,2]
[405776517,1771298207679,750.8529676,9.492e-05,2]
[405776518,1771298207723,750.8529676,9.492e-05,2]
[405776519,1771298207761,750.8529676,9.492e-05,2]
[405776520,1771298207796,750.8529676,9.492e-05,2]
[405776521,1771298207834,750.8529676,9.492e-05,2]
[405776522,1771298207872,750.8529676,9.492e-05,2]
[405776523,1771298207905,750.41467042,9.492e-05,2]
[405776524,1771298207929,0.43829718,9.492e-05,2]
[405776525,1771298207962,750.8529676,9.492e-05,2]
[405776526,1771298207995,750.8529676,9.492e-05,2]
[405776527,1771298208028,750.8529676,9.492e-05,2]
[405776528,1771298208062,750.8529676,9.492e-05,2]
[405776529,1771298208096,750.8529676,9.492e-05,2]
[405776530,1771298208135,750.8529676,9.492e-05,2]
[405776531,1771298208168,750.8529676,9.492e-05,2]
[405776532,1771298208206,750.8529676,9.492e-05,2]
[405776533,1771298208240,750.8529676,9.492e-05,2]
[405776534,1771298221310,300.0,9.492e-05,2]
[405776535,1771298227849,264.6330158,9.492e-05,2]
[405776536,1771298227892,1407.84931424,9.492e-05,2]
[405776537,1771298227928,1407.84931424,9.492e-05,2]
[405776538,1771298227969,1407.84931424,9.492e-05,2]
[405776539,1771298228010,1407.84931424,9.492e-05,2]
[405776540,1771298228052,1407.84931424,9.492e-05,2]
[405776541,1771298228090,1407.84931424,9.492e-05,2]
[405776542,1771298228137,988.28109876,9.492e-05,2]
[405776543,1771298228164,419.56821548,9.492e-05,2]
[405776544,1771298228201,1407.84931424,9.492e-05,2]
[405776545,1771298228241,1407.84931424,9.492e-05,2]
[405776546,1771298228280,1407.84931424,9.492e-05,2]
[405776547,1771298228320,1407.84931424,9.492e-05,2]
[405776548,1771298228459,1407.84931424,9.492e-05,2]
[405776549,1771298228503,1407.84931424,9.492e-05,2]
[405776550,1771298228542,1133.34589908,9.492e-05,2]
[405776551,1771298228570,274.50341516,9.492e-05,2]
[405776552,1771298228616,1407.84931424,9.492e-05,2]
[405776553,1771298228657,1407.84931424,9.492e-05,2]
[405776554,1771298228692,1407.84931424,9.492e-05,2]
[405776555,1771298228736,1407.84931424,9.492e-05,2]
[405776556,1771298228775,1407.84931424,9.492e-05,2]
[405776557,1771298636640,-152.72,9.27e-05,2]
[405776558,1771298715866,-200.0,8.68e-05,2]
[405776559,1771298719246,-2373.43567629,8.708e-05,2]
[405776560,1771298719358,-10000.01,8.708e-05,2]
[405776561,1771298719512,-10000.01,8.708e-05,2]
[405776562,1771298719790,-10000.01,8.708e-05,2]
[405776563,1771298721852,-10000.01,8.708e-05,2]
[405776564,1771298721959,-10000.01,8.708e-05,2]
[405776565,1771298722074,-10000.01,8.708e-05,2]
[405776566,1771298722187,-10000.01,8.708e-05,2]
[405776567,1771298734653,-10000.01,8.708e-05,2]
[405776569,1771298769369,1190.0,7.945e-05,2]
[405776570,1771298812676,-4880.79432371,8.708e-05,2]
[405776571,1771298812708,-71.76135258,8.941e-05,2]
[405776572,1771298812746,-94.89864742,8.941e-05,2]
[405776573,1771298812862,-160.0,9e-05,2]
[405776574,1771298822903,150.0,9.202e-05,2]
[405776575,1771298827703,9150.74,8.663e-05,2]
[405776577,1771298845577,379.27,8.644e-05,2]
[405776578,1771298845601,1691.74,8.644e-05,2]
[405776581,1771298910483,151.0,9.2e-05,2]
[405776583,1771298910906,151.0,9.2e-05,2]
[405776584,1771298941333,300.0,9.202e-05,2]
[405776585,1771299001309,1200.0,9.202e-05,2]
[405776586,1771299001811,300.0,9.202e-05,2]
[405776587,1771299002795,150.0,9.202e-05,2]
[405776588,1771299003553,226.0,9.203e-05,2]
[405776589,1771299011802,5830.27,8.611e-05,2]
[405776590,1771299011825,7627.71,8.611e-05,2]
[405776609,1771299032203,-2055.43133128,9.203e-05,2]
[405776610,1771299032216,-1014.1262929,9.203e-05,2]
[405776612,1771299032228,-1000.0,9.203e-05,2]
[405776618,1771299032273,-487865.85189851,9.203e-05,2]
[405776620,1771299032294,-92411.35917932,9.203e-05,2]
[405776623,1771299032310,-90681.75427079,9.203e-05,2]
[405776627,1771299032326,-251816.83438176,9.203e-05,2]
[405776630,1771299032344,-1254.41808677,9.203e-05,2]
[405776635,1771299032361,-952.0,9.203e-05,2]
[405776660,1771299038244,-213445.8,9.203e-05,2]
[405776661,1771299038282,-2357502.42455867,9.203e-05,2]
[405776662,1771299038302,-250.0,9.22e-05,2]
[405776663,1771299038320,-5514.56110274,9.236e-05,2]
[405776664,1771299038336,-808.20162807,9.236e-05,2]
[405776665,1771299038354,-14600.31122172,9.236e-05,2]
[405776668,1771299038371,-166.66,9.236e-05,2]
[405776670,1771299038386,-258.52795508,9.247e-05,2]
[405776673,1771299038402,-1000.0,9.269e-05,2]
[405776676,1771299038419,-2500.0,9.293e-05,2]
[405776678,1771299038435,-417.265,9.303e-05,2]
[405776681,1771299038450,-4897.327,9.303e-05,2]
[405776683,1771299038465,-500.0,9.321e-05,2]
[405776687,1771299038482,-500.0,9.321e-05,2]
[405776689,1771299038497,-500.0,9.321e-05,2]
[405776692,1771299038512,-500.0,9.321e-05,2]
[405776694,1771299038527,-500.0,9.321e-05,2]
[405776697,1771299038542,-150.0,9.321e-05,2]
[405776699,1771299038556,-500.0,9.321e-05,2]
[405776702,1771299038570,-500.0,9.321e-05,2]
[405776705,1771299038585,-500.0,9.321e-05,2]
[405776707,1771299038608,-500.0,9.321e-05,2]
[405776710,1771299038625,-554.0,9.321e-05,2]
[405776713,1771299038642,-150.0,9.321e-05,2]
[405776715,1771299038658,-500.0,9.321e-05,2]
[405776718,1771299038676,-150.0,9.321e-05,2]
[405776721,1771299038692,-458.0,9.321e-05,2]
[405776723,1771299038710,-799.0,9.321e-05,2]
[405776725,1771299038728,-500.0,9.321e-05,2]
[405776726,1771299038745,-3866.0,9.321e-05,2]
[405776727,1771299038761,-500.0,9.321e-05,2]
[405776728,1771299038778,-500.0,9.321e-05,2]
[405776729,1771299038793,-150.0,9.321e-05,2]
[405776730,1771299038810,-500.0,9.321e-05,2]
[405776731,1771299038824,-150.0,9.321e-05,2]
[405776732,1771299038840,-150.0,9.321e-05,2]
[405776733,1771299038856,-500.0,9.321e-05,2]
[405776734,1771299038870,-500.0,9.321e-05,2]
[405776735,1771299038886,-500.0,9.321e-05,2]
[405776736,1771299038900,-150.0,9.321e-05,2]
[405776737,1771299038920,-150.0,9.321e-05,2]
[405776738,1771299038940,-150.0,9.321e-05,2]
[405776739,1771299038957,-150.0,9.321e-05,2]
[405776740,1771299038976,-500.0,9.321e-05,2]
[405776741,1771299038995,-500.0,9.321e-05,2]
[405776742,1771299039013,-150.0,9.321e-05,2]
[405776743,1771299039030,-500.0,9.376e-05,2]
[405776744,1771299039048,-500.0,9.376e-05,2]
[405776745,1771299039065,-500.0,9.376e-05,2]
[405776746,1771299039081,-500.0,9.376e-05,2]
[405776747,1771299039098,-500.0,9.376e-05,2]
[405776748,1771299039113,-150.0,9.376e-05,2]
[405776749,1771299039128,-500.0,9.376e-05,2]
[405776750,1771299039145,-500.0,9.376e-05,2]
[405776751,1771299039162,-500.0,9.376e-05,2]
[405776752,1771299039179,-500.0,9.376e-05,2]
[405776753,1771299039194,-554.0,9.376e-05,2]
[405776754,1771299039209,-150.0,9.376e-05,2]
[405776755,1771299039224,-500.0,9.376e-05,2]
[405776756,1771299039240,-150.0,9.376e-05,2]
[405776757,1771299039260,-458.0,9.376e-05,2]
[405776758,1771299039278,-799.0,9.376e-05,2]
[405776759,1771299039294,-500.0,9.376e-05,2]
[405776760,1771299039315,-3866.0,9.376e-05,2]
[405776761,1771299039332,-500.0,9.376e-05,2]
[405776762,1771299039347,-500.0,9.376e-05,2]
[405776763,1771299039363,-500.0,9.376e-05,2]
[405776764,1771299039380,-500.0,9.376e-05,2]
[405776765,1771299039396,-500.0,9.376e-05,2]
[405776766,1771299039412,-500.0,9.376e-05,2]
[405776767,1771299039427,-244.28993987,9.376e-05,2]
[405776768,1771299039442,-150.0,9.376e-05,2]
[405776769,1771299039457,-150.0,9.376e-05,2]
[405776770,1771299039472,-150.0,9.376e-05,2]
[405776771,1771299039486,-649.65624143,9.376e-05,2]
[405776772,1771299039501,-500.0,9.376e-05,2]
[405776773,1771299039515,-205.12968692,9.376e-05,2]
[405776774,1771299039530,-500.0,9.392e-05,2]
[405776775,1771299039544,-500.0,9.392e-05,2]
[405776776,1771299039558,-223.96159011,9.392e-05,2]
[405776777,1771299039572,-214.37495509,9.392e-05,2]
[405776778,1771299039585,-500.0,9.392e-05,2]
[405776779,1771299039599,-419.87175235,9.392e-05,2]
[405776780,1771299039613,-338.97477841,9.392e-05,2]
[405776781,1771299039627,-451.75961878,9.392e-05,2]
[405776782,1771299039640,-500.0,9.392e-05,2]
[405776783,1771299039654,-210.64611148,9.392e-05,2]
[405776784,1771299039667,-500.0,9.392e-05,2]
[405776785,1771299039680,-500.0,9.392e-05,2]
[405776786,1771299039694,-500.0,9.392e-05,2]
[405776787,1771299039709,-500.0,9.392e-05,2]
[405776788,1771299039724,-500.0,9.392e-05,2]
[405776789,1771299039739,-500.0,9.392e-05,2]
[405776790,1771299039756,-500.0,9.392e-05,2]
[405776791,1771299039769,-500.0,9.392e-05,2]
[405776792,1771299039786,-500.0,9.392e-05,2]
[405776793,1771299039799,-500.0,9.392e-05,2]
[405776794,1771299039813,-500.0,9.392e-05,2]
[405776795,1771299039827,-500.0,9.392e-05,2]
[405776796,1771299039840,-500.0,9.392e-05,2]
[405776797,1771299039853,-500.0,9.392e-05,2]
[405776798,1771299039866,-500.0,9.392e-05,2]
[405776799,1771299039880,-500.0,9.392e-05,2]
[405776800,1771299039894,-500.0,9.392e-05,2]
[405776801,1771299039906,-500.0,9.392e-05,2]
[405776802,1771299039919,-500.0,9.392e-05,2]
[405776803,1771299039932,-500.0,9.392e-05,2]
[405776804,1771299039945,-500.0,9.392e-05,2]
[405776805,1771299039957,-500.0,9.392e-05,2]
[405776806,1771299039970,-500.0,9.392e-05,2]
[405776807,1771299039983,-500.0,9.392e-05,2]
[405776808,1771299039996,-500.0,9.392e-05,2]
[405776809,1771299040008,-500.0,9.392e-05,2]
[405776810,1771299040021,-500.0,9.392e-05,2]
[405776811,1771299040036,-500.0,9.392e-05,2]
[405776812,1771299040049,-500.0,9.392e-05,2]
[405776813,1771299040061,-500.0,9.392e-05,2]
[405776814,1771299040074,-500.0,9.392e-05,2]
[405776815,1771299040087,-500.0,9.392e-05,2]
[405776816,1771299040100,-500.0,9.392e-05,2]
[405776817,1771299040113,-500.0,9.392e-05,2]
[405776818,1771299040125,-500.0,9.392e-05,2]
[405776819,1771299040137,-500.0,9.392e-05,2]
[405776820,1771299040148,-500.0,9.392e-05,2]
[405776821,1771299040161,-500.0,9.392e-05,2]
[405776822,1771299040173,-500.0,9.392e-05,2]
[405776823,1771299040186,-500.0,9.392e-05,2]
[405776824,1771299040198,-500.0,9.392e-05,2]
[405776825,1771299040211,-500.0,9.392e-05,2]
[405776826,1771299040223,-500.0,9.392e-05,2]
[405776827,1771299040234,-500.0,9.392e-05,2]
[405776828,1771299040247,-500.0,9.392e-05,2]
[405776829,1771299040259,-500.0,9.392e-05,2]
[405776830,1771299040270,-500.0,9.392e-05,2]
[405776831,1771299040284,-166.81807556,9.392e-05,2]
[405776832,1771299040296,-500.0,9.392e-05,2]
[405776833,1771299040307,-500.0,9.392e-05,2]